fUST/lending_fUST_20240808
["ID","MTS","AMOUNT","RATE_DAILY","PERIOD"]
[334456503,1723119039639,-4600.0,0.00029656,2]
[334456505,1723119039649,-4700.0,0.00029659,2]
[334456507,1723119039659,-500.0,0.00029665,2]
[334456509,1723119039668,-33371.3385075,0.00029673,3]
[334456511,1723119039678,-35613.94890321,0.00029683,5]
[334456512,1723119039687,-151.0,0.00029683,7]
[334456515,1723119039697,-162.342644,0.00029683,7]
[334456517,1723119039707,-565.010368,0.00029683,7]
[334456519,1723119039717,-565.010368,0.00029683,7]
[334456521,1723119039727,-151.0,0.00029683,7]
[334456523,1723119039736,-151.0,0.00029683,7]
[334456525,1723119039746,-550.416879,0.00029683,7]
[334456527,1723119039756,-550.416879,0.00029683,7]
[334456529,1723119039765,-353.685022,0.00029683,7]
[334456530,1723119039774,-353.685022,0.00029683,7]
[334456532,1723119039784,-167.30636181,0.00029708,2]
[334456534,1723119039794,-2039.58375934,0.00029763,2]
[334456536,1723119039803,-3100.0,0.0002977,2]
[334456538,1723119039812,-4600.0,0.00029791,2]
[334456540,1723119039822,-168.46130497,0.00029809,2]
[334456542,1723119039832,-568.447196,0.00029863,7]
[334456545,1723119039841,-568.447196,0.00029863,7]
[334456547,1723119039851,-206.78023,0.00029863,7]
[334456549,1723119039862,-616.331972,0.00029863,7]
[334456551,1723119039872,-616.331972,0.00029863,7]
[334456552,1723119039881,-151.0,0.00029863,2]
[334456554,1723119039891,-402.732753,0.00029863,7]
[334456556,1723119039900,-172.054512,0.00029863,7]
[334456558,1723119039910,-172.054512,0.00029863,7]
[334456560,1723119039919,-402.732753,0.00029863,7]
[334456562,1723119039929,-151.0,0.00029863,7]
[334456564,1723119039938,-151.0,0.00029863,7]
[334456566,1723119039948,-5000.0,0.00029863,2]
[334456568,1723119039957,-5000.0,0.00029863,2]
[334456570,1723119039967,-969.48493059,0.00029863,2]
[334456572,1723119039976,-2000.0,0.0002992,2]
[334456574,1723119039986,-151.0,0.0002996,7]
[334456576,1723119039995,-151.0,0.0002996,7]
[334456578,1723119040004,-151.0,0.0002996,7]
[334456580,1723119040014,-151.494469,0.0002996,7]
[334456582,1723119040023,-200.0,0.00029973,5]
[334456584,1723119040035,-200.0,0.00029973,5]
[334456586,1723119040046,-200.0,0.00029973,5]
[334456588,1723119040055,-200.0,0.00029973,5]
[334456590,1723119040065,-200.0,0.00029973,5]
[334456592,1723119040075,-2000.0,0.0002998,2]
[334456594,1723119040086,-33371.3385075,0.0002999,4]
[334456596,1723119040096,-275.51474195,0.0003,4]
[334456598,1723119040120,-254.96952233,0.0003,5]
[334456601,1723119040131,-154.76012181,0.0003,5]
[334456603,1723119040142,-274.0,0.0003,2]
[334456605,1723119040151,-186.0,0.0003,2]
[334456607,1723119040161,-2100.0,0.00030005,7]
[334456609,1723119040172,-4700.0,0.00030019,7]
[334456611,1723119040182,-151.40529374,0.00030034,2]
[334456613,1723119040191,-4700.0,0.00030048,7]
[334456615,1723119040201,-3100.0,0.00030057,7]
[334456617,1723119040211,-568.447196,0.0003008,7]
[334456619,1723119040221,-568.447196,0.0003008,7]
[334456621,1723119040230,-616.331972,0.0003008,7]
[334456623,1723119040240,-616.331972,0.0003008,7]
[334456625,1723119040251,-172.054512,0.0003008,7]
[334456627,1723119040261,-402.732753,0.0003008,7]
[334456629,1723119040271,-172.054512,0.0003008,7]
[334456631,1723119040280,-402.732753,0.0003008,7]
[334456633,1723119040291,-151.0,0.0003008,7]
[334456635,1723119040300,-158.522228,0.0003008,7]
[334456637,1723119040310,-151.0,0.0003008,7]
[334456639,1723119040319,-565.010368,0.0003008,7]
[334456641,1723119040330,-565.010368,0.0003008,7]
[334456642,1723119040340,-151.0,0.0003008,7]
[334456643,1723119040350,-280.333498,0.0003008,7]
[334456644,1723119040359,-550.416879,0.0003008,7]
[334456645,1723119040370,-550.416879,0.0003008,7]
[334456646,1723119040380,-353.685022,0.0003008,7]
[334456647,1723119040390,-353.685022,0.0003008,7]
[334456648,1723119040399,-52300.60623318,0.0003008,4]
[334456649,1723119040480,-420.30828837,0.0003008,4]
[334456652,1723119040891,-1944.21536927,0.0003008,4]
[334456660,1723119041018,-12077.54712428,0.0003008,4]
[334456661,1723119041028,-280.109323,0.0003009,2]
[334456662,1723119041042,-280.109323,0.0003009,2]
[334456663,1723119041056,-151.0,0.0003009,7]
[334456664,1723119041066,-151.0,0.0003009,7]
[334456665,1723119041078,-151.0,0.0003009,7]
[334456666,1723119041088,-568.447196,0.0003009,7]
[334456667,1723119041098,-568.447196,0.0003009,7]
[334456668,1723119041109,-616.331972,0.0003009,7]
[334456669,1723119041119,-616.331972,0.0003009,7]
[334456670,1723119041129,-172.054512,0.0003009,7]
[334456671,1723119041141,-402.732753,0.0003009,7]
[334456672,1723119041151,-172.054512,0.0003009,7]
[334456673,1723119041162,-402.732753,0.0003009,7]
[334456674,1723119041171,-151.0,0.0003009,7]
[334456675,1723119041182,-151.0,0.0003009,7]
[334456676,1723119041192,-565.010368,0.0003009,7]
[334456677,1723119041204,-565.010368,0.0003009,7]
[334456678,1723119041214,-151.0,0.0003009,7]
[334456679,1723119041224,-550.416879,0.0003009,7]
[334456680,1723119041233,-550.416879,0.0003009,7]
[334456681,1723119041242,-353.685022,0.0003009,7]
[334456682,1723119041252,-353.685022,0.0003009,7]
[334456683,1723119041262,-87425.82966154,0.0003009,5]
[334456684,1723119041273,-3100.0,0.00030102,7]
[334456685,1723119041284,-151.0,0.00030129,7]
[334456686,1723119041295,-151.0,0.0003018,7]
[334456687,1723119041307,-151.0,0.0003018,7]
[334456688,1723119041317,-151.0,0.0003018,7]
[334456689,1723119041327,-151.0,0.0003018,7]
[334456690,1723119041338,-270.420956,0.0003018,7]
[334456691,1723119041348,-23371.3902409,0.0003018,4]
[334456756,1723119045977,-151.0,0.0002999,7]
[334456757,1723119045988,-151.0,0.0002999,7]
[334456758,1723119045998,-151.0,0.0003009,7]
[334456759,1723119046010,-151.0,0.0003009,7]
[334456760,1723119046020,-151.0,0.0003009,7]
[334456761,1723119046030,-151.0,0.0003009,7]
[334456762,1723119046045,-1900.93112494,0.0003018,4]
[334456763,1723119046056,-1380.6493552,0.0003018,4]
[334456764,1723119046069,-2135.67124547,0.0003018,4]
[334456765,1723119224308,175.368837,0.00014247,2]
[334456766,1723119661010,453.33046899,0.00014247,2]
[334456767,1723119734784,164.155421,0.00014247,2]
[334456769,1723120018352,729.4,0.00014247,2]
[334456770,1723120113356,729.4,0.00014247,2]
[334456776,1723120220552,270.0,0.00027,120]
[334456807,1723120232015,-3424.40721662,0.00019155,2]
[334456808,1723120232030,-1042.0,0.00019547,2]
[334456809,1723120232041,-294.18278188,0.0002,2]
[334456810,1723120232050,-154.77557542,0.0002028,2]
[334456811,1723120232060,-154.77557542,0.0002028,2]
[334456812,1723120232070,-422.67347503,0.00020999,2]
[334456813,1723120232080,-78.16770015,0.00020999,2]
[334456822,1723120238403,-344.50577488,0.00020999,2]
[334456823,1723120238413,-296.9978564,0.00021,2]
[334456824,1723120238423,-176.24730842,0.00021805,2]
[334456825,1723120238432,-176.193606,0.00023648,2]
[334456826,1723120238442,-176.193606,0.0002488,2]
[334456827,1723120238452,-163.638053,0.00025411,2]
[334456828,1723120238463,-227.168033,0.00025477,2]
[334456829,1723120238473,-3681.151181,0.00025717,2]
[334456830,1723120238483,-200.0,0.00026027,2]
[334456831,1723120238492,-153.0,0.00027135,2]
[334456832,1723120238503,-153.0,0.00027135,2]
[334456833,1723120238512,-153.0,0.00027135,2]
[334456834,1723120238523,-305.65463372,0.00027396,2]
[334456835,1723120238537,-2605.08504403,0.00027396,2]
[334456836,1723120238546,-22269.57030175,0.000275,2]
[334456837,1723120238555,-164.155421,0.00027884,2]
[334456838,1723120238564,-6539.41,0.00028089,3]
[334456839,1723120238574,-5449.5,0.00028089,3]
[334456840,1723120238584,-59605.1011043,0.0002809,3]
[334456841,1723120238594,-165.03835677,0.00028099,2]
[334456842,1723120238604,-500.0,0.00028099,2]
[334456843,1723120238614,-500.0,0.00028099,2]
[334456844,1723120238623,-500.0,0.00028099,2]
[334456845,1723120238633,-500.0,0.00028099,2]
[334456846,1723120238642,-500.0,0.00028099,2]
[334456847,1723120238652,-500.0,0.00028099,2]
[334456848,1723120238661,-500.0,0.00028099,2]
[334456849,1723120238671,-500.0,0.00028099,2]
[334456850,1723120238680,-250.23344677,0.00028099,2]
[334456851,1723120238695,-500.0,0.00028099,2]
[334456852,1723120238705,-600.0,0.00028099,2]
[334456853,1723120238717,-500.0,0.00028099,2]
[334456854,1723120238727,-250.0,0.00028099,2]
[334456855,1723120238737,-34573.20723653,0.000281,11]
[334456856,1723120238747,-133053.5786796,0.000281,2]
[334456857,1723120238758,-153.0,0.00028354,2]
[334456858,1723120238768,-153.0,0.00028354,2]
[334456859,1723120238781,-153.0,0.00028354,2]
[334456860,1723120238791,-153.0,0.00028354,2]
[334456861,1723120238800,-153.0,0.00028354,2]
[334456862,1723120239056,-153.0,0.00028354,2]
[334456863,1723120239066,-153.0,0.00028354,2]
[334456864,1723120239074,-153.0,0.00028354,2]
[334456865,1723120239083,-153.0,0.00028354,2]
[334456866,1723120239093,-153.0,0.00028354,2]
[334456867,1723120239105,-153.0,0.00028354,2]
[334456868,1723120239114,-153.0,0.00028354,2]
[334456869,1723120239123,-153.0,0.00028354,2]
[334456870,1723120239132,-153.0,0.00028354,2]
[334456871,1723120239142,-153.0,0.00028354,2]
[334456872,1723120239151,-153.0,0.00028354,2]
[334456873,1723120239160,-153.0,0.00028354,2]
[334456874,1723120239169,-153.0,0.00028354,2]
[334456875,1723120239179,-153.0,0.00028354,2]
[334456876,1723120239188,-153.0,0.00028354,2]
[334456877,1723120239198,-153.0,0.00028354,2]
[334456878,1723120239208,-153.0,0.00028354,2]
[334456879,1723120239217,-153.0,0.00028354,2]
[334456880,1723120239226,-153.0,0.00028354,2]
[334456881,1723120239236,-153.0,0.00028354,2]
[334456882,1723120239245,-153.0,0.00028354,2]
[334456883,1723120239254,-153.0,0.00028354,2]
[334456884,1723120239264,-153.0,0.00028354,2]
[334456885,1723120239273,-153.0,0.00028354,2]
[334456886,1723120239287,-153.0,0.00028354,2]
[334456887,1723120239297,-153.0,0.00028354,2]
[334456888,1723120239306,-153.0,0.00028354,2]
[334456889,1723120239316,-500.0,0.00028803,2]
[334456890,1723120239326,-4700.0,0.00028841,2]
[334456891,1723120239336,-3100.0,0.00028972,2]
[334456892,1723120239346,-1000.0,0.00029,2]
[334456893,1723120239355,-500.0,0.00029,2]
[334456894,1723120239365,-500.0,0.00029021,2]
[334456895,1723120239375,-4700.0,0.00029068,2]
[334456896,1723120239389,-3100.0,0.00029132,2]
[334456897,1723120239399,-2100.0,0.0002922,2]
[334456898,1723120239408,-1412.0,0.00029227,2]
[334456899,1723120239418,-150.0,0.00029227,2]
[334456900,1723120239427,-500.0,0.00029248,2]
[334456901,1723120239437,-499.3,0.00029276,2]
[334456902,1723120239446,-168.46130497,0.00029327,2]
[334456903,1723120239456,-2100.0,0.0002935,2]
[334456904,1723120239465,-500.0,0.00029448,2]
[334456905,1723120239479,-407.9167519,0.00029461,2]
[334456906,1723120239488,-4600.0,0.00029515,2]
[334456907,1723120239498,-4700.0,0.00029543,2]
[334456908,1723120239507,-5692.41676039,0.00029551,3]
[334456924,1723120241002,-24110.13379181,0.00029551,3]
[334456926,1723120241012,-35613.94890421,0.00029571,5]
[334456928,1723120241022,-407.91675186,0.00029618,2]
[334456929,1723120241036,-2100.0,0.00029624,2]
[334456930,1723120241046,-4700.0,0.00029697,2]
[334456931,1723120241056,-500.0,0.0002974,2]
[334456932,1723120241065,-2100.0,0.00029743,2]
[334456933,1723120241074,-407.91675186,0.00029776,2]
[334456934,1723120241083,-29802.5505522,0.00029793,3]
[334456935,1723120241092,-5264.15588993,0.000298,7]
[334456936,1723120241102,-500.0,0.00029803,2]
[334456937,1723120241111,-5000.0,0.00029863,2]
[334456938,1723120241121,-5000.0,0.00029863,2]
[334456939,1723120241130,-969.48493059,0.00029863,2]
[334456940,1723120241139,-500.0,0.00029902,2]
[334456941,1723120241149,-167.30636181,0.00029907,2]
[334456942,1723120241158,-2000.0,0.0002992,2]
[334456943,1723120241168,-407.91675186,0.00029933,2]
[334456944,1723120241177,-4700.0,0.00029971,2]
[334456945,1723120241187,-254.96952233,0.0003,5]
[334456946,1723120241196,-154.77557542,0.0003,5]
[334456947,1723120241205,-275.51474195,0.0003,4]
[334456948,1723120241215,-150.112233,0.0003,5]
[334456949,1723120241224,-318.0,0.0003,2]
[334456950,1723120241233,-150.112233,0.0003,9]
[334456951,1723120241243,-9368.94904089,0.0003,2]
[334456996,1723120449770,162.60952,0.00014247,2]
[334456997,1723120489921,729.4,0.00014247,2]
[334456998,1723120593892,729.4,0.00014247,2]
[334457014,1723120930287,198.448927,0.00014247,2]
[334457040,1723121355120,-305.68460712,0.00015751,2]
[334457041,1723121355142,-155.06919338,0.00015952,2]
[334457042,1723121355164,-1020.02822822,0.00017269,2]
[334457043,1723121355186,-250.3081391,0.00017269,2]
[334457044,1723121355207,-39.00139322,0.00019256,2]
[334457081,1723121433245,-302.0,0.00017019,2]
[334457082,1723121433257,-5847.46831749,0.00017019,2]
[334457083,1723121433266,-1042.0,0.00019177,2]
[334457084,1723121433276,-1042.0,0.00019177,2]
[334457087,1723121433292,-3.43160803,0.00019451,2]
[334457093,1723121433316,-205.79620071,0.00019451,2]
[334457097,1723121433326,-656.33443705,0.00019451,2]
[334457181,1723121438492,-6.89690737,0.00019451,2]
[334457182,1723121438503,-179.48870594,0.00019477,2]
[334457183,1723121438512,-856.55636634,0.00019547,2]
[334457184,1723121438522,-931.7741112,0.0002,2]
[334457185,1723121438532,-823.0,0.0002,2]
[334457186,1723121438541,-222.18832509,0.0002,2]
[334457187,1723121438550,-1190.6080579,0.00020124,2]
[334457188,1723121438559,-172.379759,0.00020152,2]
[334457189,1723121438570,-172.379759,0.00020414,2]
[334457190,1723121438580,-172.379759,0.00020677,2]
[334457191,1723121438589,-172.379759,0.00020939,2]
[334457192,1723121438599,-696.61224682,0.00020999,2]
[334457193,1723121438609,-297.10158211,0.00021,2]
[334457194,1723121438619,-172.379759,0.00021202,2]
[334457195,1723121438628,-162.60952,0.00021467,2]
[334457196,1723121438637,-237.44377,0.000226,2]
[334457197,1723121438647,-3240.82753635,0.0002278,2]
[334457198,1723121438657,-19311.87273452,0.00022783,2]
[334457254,1723121442206,-5588.12726548,0.00022783,2]
[334457255,1723121442215,-3149.77871135,0.00023982,2]
[334457256,1723121442225,-154.86095337,0.00025,2]
[334457257,1723121442234,-169.4698737,0.00025471,2]
[334457258,1723121442243,-3240.8275363,0.00026008,2]
[334457259,1723121442252,-200.0,0.00026027,2]
[334457260,1723121442261,-402.58073778,0.00026559,2]
[334457261,1723121442270,-881.61577024,0.00026575,2]
[334457262,1723121442279,-500.0,0.00026587,2]
[334457263,1723121442294,-500.0,0.00026587,2]
[334457264,1723121442303,-500.0,0.00026587,2]
[334457265,1723121442312,-500.0,0.00026587,2]
[334457266,1723121442320,-530.65265945,0.00026587,2]
[334457267,1723121442329,-160.64700877,0.0002661,2]
[334457268,1723121442339,-4056.02343782,0.00027,2]
[334457269,1723121442348,-175.0,0.00027,2]
[334457270,1723121442358,-153.0,0.00027204,2]
[334457271,1723121442367,-153.0,0.00027204,2]
[334457272,1723121442376,-153.0,0.00027204,2]
[334457273,1723121442385,-153.0,0.00027204,2]
[334457274,1723121442394,-153.0,0.00027204,2]
[334457275,1723121442403,-153.0,0.00027204,2]
[334457276,1723121442412,-153.0,0.00027204,2]
[334457277,1723121442422,-153.0,0.00027204,2]
[334457278,1723121442431,-153.0,0.00027204,2]
[334457279,1723121442440,-153.0,0.00027204,2]
[334457280,1723121442448,-153.0,0.00027204,2]
[334457281,1723121442457,-153.0,0.00027204,2]
[334457282,1723121442467,-153.0,0.00027204,2]
[334457283,1723121442476,-153.0,0.00027204,2]
[334457284,1723121442485,-153.0,0.00027204,2]
[334457285,1723121442496,-200.99530001,0.00027218,2]
[334457286,1723121442505,-247.63496574,0.00027396,2]
[334457287,1723121442515,-2605.08504403,0.00027396,2]
[334457288,1723121442525,-1000.0,0.00028,28]
[334457289,1723121442534,-2005.0,0.00028079,10]
[334457290,1723121442547,-5127.54941906,0.00028082,2]
[334457291,1723121442556,-2005.0,0.00028089,10]
[334457292,1723121442565,-2005.0,0.00028099,10]
[334457293,1723121442575,-2005.0,0.00028099,10]
[334457294,1723121442585,-2005.0,0.00028099,10]
[334457295,1723121442594,-1400.83416603,0.00028099,10]
[334457296,1723121442604,-688.75014188,0.00028261,2]
[334457297,1723121442614,-153.0,0.00028361,2]
[334457298,1723121442623,-153.0,0.00028361,2]
[334457299,1723121442632,-153.0,0.00028361,2]
[334457300,1723121442642,-153.0,0.00028361,2]
[334457301,1723121442651,-153.0,0.00028361,2]
[334457303,1723121442661,-153.0,0.00028361,2]
[334457305,1723121442670,-153.0,0.00028361,2]
[334457306,1723121442679,-153.0,0.00028361,2]
[334457307,1723121442688,-153.0,0.00028361,2]
[334457308,1723121442698,-153.0,0.00028361,2]
[334457309,1723121442708,-153.0,0.00028361,2]
[334457310,1723121442718,-153.0,0.00028361,2]
[334457312,1723121442727,-153.0,0.00028361,2]
[334457313,1723121442737,-153.0,0.00028361,2]
[334457314,1723121442747,-153.0,0.00028361,2]
[334457315,1723121442758,-153.0,0.00028361,2]
[334457316,1723121442768,-153.0,0.00028361,2]
[334457317,1723121442780,-153.0,0.00028361,2]
[334457318,1723121442792,-153.0,0.00028361,2]
[334457319,1723121442802,-153.0,0.00028361,2]
[334457320,1723121442812,-153.0,0.00028361,2]
[334457321,1723121442822,-153.0,0.00028361,2]
[334457322,1723121442831,-153.0,0.00028361,2]
[334457323,1723121442840,-153.0,0.00028361,2]
[334457324,1723121442851,-153.0,0.00028361,2]
[334457325,1723121442861,-153.0,0.00028361,2]
[334457327,1723121442870,-153.0,0.00028361,2]
[334457330,1723121442880,-153.0,0.00028361,2]
[334457332,1723121442889,-153.0,0.00028361,2]
[334457334,1723121442899,-153.0,0.00028361,2]
[334457337,1723121442909,-153.0,0.00028361,2]
[334457339,1723121442918,-153.0,0.00028361,2]
[334457342,1723121442928,-153.0,0.00028361,2]
[334457345,1723121442937,-153.0,0.00028361,2]
[334457348,1723121442947,-153.0,0.00028361,2]
[334457350,1723121442956,-153.0,0.00028361,2]
[334457353,1723121442965,-153.0,0.00028361,2]
[334457356,1723121442975,-153.0,0.00028361,2]
[334457359,1723121442984,-153.0,0.00028361,2]
[334457363,1723121442994,-153.0,0.00028361,2]
[334457365,1723121443003,-153.0,0.00028361,2]
[334457368,1723121443013,-153.0,0.00028361,2]
[334457372,1723121443022,-153.0,0.00028361,2]
[334457376,1723121443049,-153.0,0.00028361,2]
[334457380,1723121443059,-153.0,0.00028361,2]
[334457383,1723121443069,-153.0,0.00028361,2]
[334457385,1723121443079,-153.0,0.00028361,2]
[334457388,1723121443089,-153.0,0.00028361,2]
[334457391,1723121443099,-153.0,0.00028361,2]
[334457393,1723121443109,-153.0,0.00028361,2]
[334457396,1723121443118,-153.0,0.00028361,2]
[334457399,1723121443128,-153.0,0.00028361,2]
[334457405,1723121443371,-153.0,0.00028361,2]
[334457406,1723121443381,-153.0,0.00028361,2]
[334457407,1723121443391,-5127.54941906,0.00028362,2]
[334457408,1723121443402,-4266.65,0.00028626,3]
[334457409,1723121443412,-5127.54941906,0.00028636,2]
[334457410,1723121443421,-2732.69,0.00028641,3]
[334457411,1723121443433,-688.75014187,0.00028671,2]
[334457412,1723121443443,-162.60952,0.00028687,2]
[334457413,1723121443452,-300.0,0.000287,14]
[334457414,1723121443462,-150.0,0.00028814,2]
[334457415,1723121443473,-4700.0,0.00028876,2]
[334457416,1723121443484,-27299.2770642,0.00028918,3]
[334457417,1723121443494,-5127.54941906,0.00028927,2]
[334457418,1723121443504,-500.0,0.00028988,2]
[334457419,1723121443513,-150.112233,0.00029,10]
[334457421,1723121443523,-1000.0,0.00029,29]
[334457423,1723121443532,-150.112233,0.00029,10]
[334457425,1723121443546,-500.0,0.00029059,2]
[334457427,1723121443556,-688.75014187,0.00029081,2]
[334457429,1723121443566,-2100.0,0.00029086,2]
[334457431,1723121443576,-150.0,0.00029194,2]
[334457433,1723121443585,-5127.54941906,0.00029206,2]
[334457435,1723121443595,-3240.8275363,0.00029237,2]
[334457437,1723121443605,-500.0,0.00029248,2]
[334457439,1723121443615,-2100.0,0.00029302,2]
[334457441,1723121443624,-5127.54941906,0.00029329,2]
[334457443,1723121443634,-284.78720614,0.0002939,2]
[334457445,1723121443644,-4700.0,0.00029398,2]
[334457447,1723121443653,-359.01787003,0.00029417,2]
[334457454,1723121443803,-153.0,0.00028361,2]
[334457455,1723121443814,-153.0,0.00028361,2]
[334457456,1723121443829,-2740.98212997,0.00029417,2]
[334457457,1723121443840,-150.0,0.00029487,2]
[334457458,1723121443852,-645.62,0.00029487,2]
[334457459,1723121443862,-1412.0,0.00029487,2]
[334457460,1723121443872,-213.771,0.00029487,2]
[334457461,1723121443882,-688.75014187,0.0002949,2]
[334457462,1723121443892,-500.0,0.00029497,2]
[334457463,1723121443903,-500.0,0.00029518,2]
[334457464,1723121443914,-500.0,0.0002954,2]
[334457465,1723121443925,-315.8572414,0.00029565,2]
[334457467,1723121443942,-1573.59767565,0.00029565,2]
[334457508,1723121447379,-1085.04375266,0.00029565,2]
[334457514,1723121447438,-1625.50133029,0.00029565,2]
[334457516,1723121447448,-167.30636181,0.0002957,2]
[334457518,1723121447457,-247.15086955,0.00029615,2]
[334457520,1723121447467,-195.84746376,0.00029615,2]
[334457522,1723121447477,-500.0,0.00029615,2]
[334457524,1723121447486,-529.33171638,0.00029615,2]
[334457526,1723121447495,-500.0,0.00029615,2]
[334457528,1723121447505,-500.0,0.00029615,2]
[334457530,1723121447514,-500.0,0.00029615,2]
[334457532,1723121447523,-500.0,0.00029615,2]
[334457533,1723121447532,-500.0,0.00029615,2]
[334457535,1723121447544,-500.0,0.00029615,2]
[334457537,1723121447553,-21859.8108548,0.00029616,11]
[334457539,1723121447562,-27299.2770642,0.00029617,3]
[334457541,1723121447572,-3100.0,0.00029627,2]
[334457542,1723121447582,-4600.0,0.00029639,2]
[334457544,1723121447591,-4700.0,0.00029668,2]
[334457545,1723121447600,-2100.0,0.00029681,2]
[334457547,1723121447610,-151.40529374,0.00029725,2]
[334457549,1723121447619,-500.0,0.00029773,2]
[334457551,1723121447629,-500.0,0.00029808,2]
[334457553,1723121447639,-3555.54,0.00029843,3]
[334457555,1723121447648,-5127.54941912,0.00029848,2]
[334457557,1723121447659,-27299.2770642,0.00029853,3]
[334457560,1723121447669,-5000.0,0.00029863,2]
[334457562,1723121447679,-5000.0,0.00029863,2]
[334457564,1723121447688,-969.48493059,0.00029863,2]
[334457566,1723121447698,-200.0,0.00029873,5]
[334457567,1723121447708,-200.0,0.00029873,5]
[334457568,1723121447717,-200.0,0.00029873,5]
[334457569,1723121447726,-200.0,0.00029873,5]
[334457570,1723121447736,-4600.0,0.0002988,2]
[334457571,1723121447746,-2000.0,0.0002989,2]
[334457572,1723121447760,-54598.5541285,0.0002989,3]
[334457573,1723121447770,-5000.0,0.000299,2]
[334457574,1723121447780,-6066.30596566,0.000299,7]
[334457575,1723121447792,-688.75014187,0.000299,2]
[334457576,1723121447804,-28545.19855257,0.000299,3]
[334457577,1723121447819,-60342.80144743,0.000299,3]
[334457578,1723121447828,-2584.36306013,0.000299,2]
[334457579,1723121447839,-2000.0,0.0002992,2]
[334457580,1723121447852,-200.0,0.00029973,5]
[334457581,1723121447862,-565.010368,0.00029973,7]
[334457583,1723121447873,-565.010368,0.00029973,7]
[334457585,1723121447883,-402.732753,0.00029973,7]
[334457587,1723121447894,-402.732753,0.00029973,7]
[334457589,1723121447905,-162.342644,0.00029973,7]
[334457591,1723121447915,-213.020599,0.00029973,7]
[334457594,1723121447926,-213.020599,0.00029973,7]
[334457596,1723121447935,-151.0,0.00029973,7]
[334457597,1723121447945,-151.0,0.00029973,7]
[334457600,1723121447955,-151.0,0.00029973,7]
[334457602,1723121447965,-550.416879,0.00029973,7]
[334457604,1723121447975,-616.331972,0.00029973,7]
[334457606,1723121447986,-550.416879,0.00029973,7]
[334457608,1723121447995,-616.331972,0.00029973,7]
[334457610,1723121448005,-353.685022,0.00029973,7]
[334457612,1723121448014,-353.685022,0.00029973,7]
[334457614,1723121448023,-151.0,0.00029973,7]
[334457616,1723121448033,-151.0,0.00029973,7]
[334457618,1723121448046,-11584.04019943,0.0002999,11]
[334457620,1723121448056,-151.0,0.0002999,7]
[334457622,1723121448065,-151.0,0.0002999,7]
[334457624,1723121448074,-151.0,0.0002999,7]
[334457626,1723121448084,-280.109323,0.0002999,2]
[334457628,1723121448094,-280.109323,0.0002999,2]
[334457630,1723121448104,-54598.5541285,0.0002999,4]
[334457632,1723121448113,-500.0,0.00029997,2]
[334457634,1723121448122,-39011.7770871,0.0003,2]
[334457645,1723121513749,158.706127,0.00014247,2]
[334457648,1723121668868,295.13577166,0.00014247,2]
[334457649,1723121683886,271.95561008,0.00014247,2]
[334457650,1723121691189,13812.08995318,0.00014247,2]
[334457651,1723121699458,3785.54866294,0.00014247,2]
[334457652,1723121699762,218.30768663,0.00014247,2]
[334457653,1723121732011,155.54138296,0.00014247,2]
[334457655,1723121898884,273.37336231,9.9e-05,2]
[334457656,1723121914442,273.37336231,9.9e-05,2]
[334457657,1723121931524,273.37336231,9.9e-05,2]
[334457658,1723121948127,273.37336231,9.9e-05,2]
[334457659,1723121962552,155.40357258,0.00012,2]
[334457660,1723121963677,155.9660416,9.9e-05,2]